bitfinex/quotes_SOLUSD_20240816
["timestamp","ask_amount","ask_price","bid_price","bid_amount"]
[1723840926442,7.0843,141.16,141.12,7.086]
[1723840927438,33.67,141.17,141.06,329.7687]
[1723840927648,33.67,141.17,141.14,7.0847]
[1723840927849,33.67,141.17,141.13,7.0854]
[1723840928037,40.754,141.17,141.12,24.8008]
[1723840928865,40.754,141.17,141.09,35.4359]
[1723840928866,33.67,141.17,141.09,53.1549]
[1723840929049,40.7549,141.15,141.11,7.0866]
[1723840929354,40.7547,141.15,141.1,7.087]
[1723840929732,40.7547,141.15,141.11,7.0864]
[1723840931955,7.0852,141.14,141.09,24.8062]
[1723840933357,55.735,141.15,141.1,7.087]
[1723840933358,62.8198,141.15,141.1,7.087]
[1723840933941,62.8198,141.15,141.11,7.0865]
[1723840934659,7.0842,141.16,141.12,7.0861]
[1723840934861,7.0842,141.16,141.11,24.8027]
[1723840935068,7.0847,141.15,141.11,24.8027]
[1723840935273,7.0841,141.16,141.11,24.8027]
[1723840936964,33.67,141.15,141.11,17.7162]
[1723840937156,40.7548,141.15,141.11,17.7162]
[1723840938165,7.086,141.13,141.09,7.0875]
[1723840938358,33.67,141.13,141.08,17.7199]
[1723840939284,7.0865,141.12,141.08,17.7199]
[1723840939464,40.7558,141.13,141.08,24.8079]
[1723840939664,7.0861,141.12,141.08,24.8079]
[1723840940067,7.0863,141.12,141.07,7.9608229]
[1723840940264,7.0863,141.12,141.08,7.0881]
[1723840941365,33.67,141.15,141.09,7.0873]
[1723840941573,20.0,141.14,141.09,7.0873]
[1723840941881,27.0853,141.14,141.09,7.0873]
[1723840942464,7.0857,141.13,141.09,7.0873]
[1723840943268,7.0857,141.13,141.08,7.0879]
[1723840943471,7.0857,141.13,141.09,7.0875]
[1723840944578,7.39094402,141.17,141.07,0.8722229]
[1723840944770,33.67,141.17,141.07,20.8722229]
[1723840944967,33.67,141.17,141.08,45.0]
[1723840945971,7.0842,141.16,141.12,7.0858]
[1723840955179,13.52,141.13,141.08,17.7196]
[1723840955381,7.0847,141.15,141.1,7.0868]
[1723840955576,13.52,141.14,141.11,7.0866]
[1723840956699,13.52,141.14,141.1,17.7176]
[1723840956999,13.52,141.14,141.11,45.0]
[1723840957497,13.52,141.14,141.11,52.0863]
[1723840957973,13.52,141.14,141.12,7.086]
[1723840958181,13.52,141.14,141.11,7.0864]
[1723840958375,13.52,141.14,141.1,17.7176]
[1723840958603,13.52,141.14,141.07,0.8722229]
[1723840958604,13.52,141.12,141.07,18.5934229]
[1723840958807,13.52,141.12,141.09,7.0875]
[1723840959177,13.52,141.12,141.09,17.7185]
[1723840959376,7.0847,141.15,141.1,7.087]
[1723840959677,13.52,141.14,141.11,7.0865]
[1723840961482,7.0842,141.16,141.12,7.0861]
[1723840961483,13.52,141.16,141.12,7.0861]
[1723840962810,20.6042,141.16,141.12,7.0861]
[1723840963792,7.0855,141.14,141.08,62.7197]
[1723840964011,13.52,141.14,141.11,7.0865]
[1723840967288,7.084,141.17,141.12,24.801]
[1723840967494,33.52,141.16,141.12,24.801]
[1723840968003,40.6045,141.16,141.12,17.715]
[1723840968698,7.0846,141.15,141.12,17.715]
[1723840970315,7.0846,141.15,141.11,7.0864]
[1723840970697,13.52,141.14,141.08,7.088]
[1723840970903,7.0858,141.13,141.09,7.0875]
[1723840971326,13.52,141.12,141.08,17.7201]
[1723840971501,13.52,141.14,141.1,7.087]
[1723840973027,20.6054,141.14,141.09,52.0875]
[1723840974948,13.52,141.14,141.09,45.0]
[1723840975232,13.52,141.12,141.09,45.0]
[1723840975529,20.6052,141.14,141.09,52.0872]
[1723840975910,20.6052,141.14,141.1,7.0871]
[1723840976429,13.52,141.14,141.11,7.0865]
[1723840976810,13.52,141.14,141.09,7.0875]
[1723840977018,7.086,141.13,141.08,7.0877]
[1723840977531,20.6052,141.14,141.09,7.0875]
[1723840977910,7.0857,141.13,141.09,7.0875]
[1723840978225,20.6053,141.14,141.1,7.087]
[1723840979615,20.6053,141.14,141.09,24.8063]
[1723840982633,20.6053,141.14,141.1,7.0871]
[1723840983211,13.52,141.14,141.1,7.0871]
[1723840983414,7.0848,141.15,141.07,0.8722229]
[1723840983415,22.065,141.19,141.11,17.7163]
[1723840983608,13.52,141.17,141.12,45.0]
[1723840984827,20.6038,141.17,141.12,45.0]
[1723840985033,20.6038,141.17,141.13,7.0852]
[1723840985612,20.6038,141.17,141.12,52.086]
[1723840987325,13.52,141.17,141.12,45.0]
[1723840987732,22.065,141.19,141.12,45.0]
[1723840987935,13.52,141.17,141.12,45.0]
[1723840989034,20.604,141.17,141.13,7.0855]
[1723840991715,13.52,141.15,141.12,52.086]
[1723840994814,13.52,141.15,141.11,24.8028]
[1723840995331,13.52,141.13,141.11,17.7163]
[1723840995537,13.52,141.13,141.1,7.0869]
[1723840995739,17.7083,141.18,141.08,24.8071]
[1723840995740,13.52,141.11,141.08,24.8071]
[1723840996247,7.0871,141.1,141.07,0.8722229]
[1723840996442,20.6067,141.11,141.07,0.8722229]
[1723840996953,13.52,141.09,141.07,0.8722229]
[1723840998151,20.6077,141.09,141.07,0.8722229]
[1723840999328,7.0881,141.08,141.07,0.8722229]
[1723841001729,20.6078,141.09,141.07,0.8722229]
[1723841002550,7.0881,141.08,141.07,0.8722229]
[1723841003531,13.52,141.09,141.07,0.8722229]
[1723841003831,20.6077,141.09,141.07,0.8722229]
[1723841006240,6.5485,141.12,141.07,0.8722229]
[1723841006447,40.607,141.11,141.07,0.8722229]
[1723841007568,7.0876,141.1,141.07,0.8722229]
[1723841008868,33.52,141.11,141.08,7.0881]
[1723841009059,13.52,141.11,141.07,0.8722229]
[1723841009235,13.52,141.11,141.08,7.088]
[1723841009758,35.7952,141.13,141.08,7.088]
[1723841009960,7.0862,141.12,141.08,7.088]
[1723841010490,13.52,141.13,141.09,7.0874]
[1723841011551,37.506272,141.16,141.11,7.0865]
[1723841011771,27.2477,141.16,141.1,17.7175]
[1723841011951,20.6042,141.16,141.1,17.7175]
[1723841012578,13.52,141.16,141.13,7.0852]
[1723841012773,13.52,141.16,141.12,24.801]
[1723841013255,13.52,141.16,141.1,15.537]
[1723841013458,20.6045,141.16,141.11,7.0863]
[1723841013667,20.6045,141.16,141.12,7.0861]
[1723841013979,20.6045,141.16,141.11,7.0865]
[1723841014565,20.6045,141.16,141.12,7.086]
[1723841015858,13.52,141.16,141.13,7.0856]
[1723841016377,20.6042,141.16,141.12,7.0861]
[1723841016560,13.52,141.14,141.11,7.0866]
[1723841016986,20.6043,141.16,141.12,7.0861]
[1723841017481,13.52,141.16,141.13,7.0855]
[1723841019878,13.52,141.16,141.13,6.5855]
[1723841020472,20.90002178,141.21,141.12,13.52]
[1723841020694,20.90002178,141.21,141.13,45.0]
[1723841020695,13.52,141.21,141.13,45.0]
[1723841020858,6.2683,141.23,141.14,13.52]
[1723841021057,15.9913,141.25,141.14,13.52]
[1723841021058,13.52,141.24,141.16,15.9676]
[1723841021268,20.6002,141.24,141.19,7.0825]
[1723841021474,7.0806,141.23,141.19,7.0825]
[1723841022578,20.6002,141.24,141.19,7.0825]
[1723841025069,20.6002,141.24,141.2,7.082]
[1723841026081,20.6002,141.24,141.2,24.7868]
[1723841026082,13.52,141.24,141.2,24.7868]
[1723841028676,13.52,141.22,141.19,7.0826]
[1723841029183,13.52,141.22,141.17,17.7082]
[1723841029888,13.52,141.22,141.18,7.0827]
[1723841029889,20.6013,141.22,141.18,7.0827]
[1723841030066,13.52,141.22,141.18,7.0827]
[1723841033275,13.52,141.22,141.19,7.0822]
[1723841033903,7.0806,141.23,141.19,7.0822]
[1723841034193,13.52,141.23,141.2,7.0821]
[1723841034596,20.5997,141.25,141.2,7.0821]
[1723841035789,6.6549,141.27,141.16,36.5786]
[1723841035790,6.6549,141.27,141.22,7.0807]
[1723841035970,13.52,141.26,141.22,7.0807]
[1723841037091,13.52,141.26,141.21,62.7037]
[1723841037092,13.52,141.24,141.21,69.7852]
[1723841040415,13.52,141.24,141.22,7.0811]
[1723841040716,13.52,141.24,141.18,17.7069]
[1723841040887,13.52,141.24,141.19,45.0]
[1723841041215,13.52,141.22,141.19,45.0]
[1723841042123,13.52,141.22,141.2,7.0819]
[1723841042793,13.52,141.24,141.2,7.0819]
[1723841044216,13.52,141.24,141.21,7.0815]
[1723841044602,20.6001,141.24,141.2,24.7869]
[1723841046100,13.52,141.24,141.21,7.0816]
[1723841047308,13.52,141.24,141.2,24.7868]
[1723841048189,13.52,141.24,141.21,7.0816]
[1723841048622,20.5992,141.26,141.22,7.0811]
[1723841050687,13.52,141.26,141.23,7.0802]
[1723841050893,13.7336,141.27,141.24,7.0799]
[1723841050894,6.6549,141.27,141.24,7.0799]
[1723841051922,6.6549,141.27,141.23,7.0804]
[1723841052621,13.7335,141.27,141.23,7.0804]
[1723841055245,13.52,141.26,141.23,7.0804]
[1723841056735,20.5991,141.26,141.22,24.7834]
[1723841057335,13.52,141.24,141.22,17.7024]
[1723841057711,20.6002,141.24,141.2,7.082]
[1723841058040,7.0816,141.21,141.17,7.0835]
[1723841058239,20.6022,141.2,141.16,24.7933]
[1723841059228,20.6032,141.18,141.13,17.7132]
[1723841059549,7.084,141.17,141.13,17.7132]
[1723841059737,13.52,141.15,141.13,17.7132]
[1723841060745,13.52,141.15,141.1,32.861]
[1723841061036,13.52,141.15,141.12,7.0861]
[1723841061721,13.52,141.15,141.13,7.0855]
[1723841063936,20.6037,141.17,141.13,7.0855]
[1723841066435,13.52,141.19,141.12,17.7149]
[1723841066632,13.52,141.19,141.13,45.0]
[1723841066937,13.52,141.19,141.14,17.7119]
[1723841067122,13.52,141.19,141.15,52.0845]
[1723841067322,13.52,141.19,141.15,7.0845]
[1723841068133,20.6026,141.19,141.15,7.0845]
[1723841069345,7.0833,141.18,141.14,24.7969]
[1723841069547,13.52,141.19,141.14,24.7969]
[1723841069736,20.6028,141.19,141.15,7.0845]
[1723841070122,13.52,141.19,141.16,7.0841]
[1723841075844,7.0832,141.18,141.14,7.0847]
[1723841076151,20.6028,141.19,141.15,7.0845]
[1723841076346,20.6028,141.19,141.15,52.0845]
[1723841076547,13.52,141.19,141.15,52.0845]
[1723841077551,13.52,141.19,141.16,7.0841]
[1723841077947,7.0818,141.21,141.17,7.0835]
[1723841078148,13.52,141.21,141.17,17.7088]
[1723841078359,20.6016,141.21,141.17,24.7923]
[1723841080453,13.52,141.21,141.19,7.0826]
[1723841080643,6.5213,141.22,141.19,7.0826]
[1723841081337,6.5213,141.22,141.17,17.7088]
[1723841081338,6.5213,141.22,141.2,7.0821]
[1723841081537,6.5213,141.22,141.19,7.0824]
[1723841086366,13.6025,141.22,141.18,7.083]
[1723841087952,6.5213,141.22,141.18,7.083]
[1723841090155,6.5213,141.22,141.19,7.0826]
[1723841091680,7.0835,141.18,141.14,17.7121]
[1723841091978,13.52,141.19,141.15,7.0842]
[1723841092579,13.52,141.21,141.14,17.7121]
[1723841092957,13.52,141.21,141.15,45.0]
[1723841093752,13.6025,141.22,141.15,45.0]
[1723841093953,27.1225,141.22,141.15,45.0]
[1723841094155,27.1225,141.22,141.17,7.0835]
[1723841095386,20.0413,141.22,141.16,17.7099]
[1723841095548,13.52,141.2,141.17,45.0]
[1723841095747,13.52,141.2,141.15,62.7108]
[1723841095967,13.6029,141.22,141.15,62.7108]
[1723841096164,27.1229,141.22,141.15,62.7108]
[1723841096581,7.0823,141.2,141.15,62.7108]
[1723841096878,13.52,141.2,141.15,62.7108]
[1723841097085,13.52,141.2,141.16,7.0838]
[1723841097249,13.52,141.2,141.17,45.0]
[1723841097789,13.52,141.18,141.14,7.085]
[1723841097946,13.6025,141.22,141.11,48.9509]
[1723841098146,13.52,141.2,141.16,17.7098]
[1723841098385,20.0413,141.22,141.16,17.7098]
[1723841098758,20.0413,141.22,141.17,7.0835]
[1723841098952,27.1224,141.22,141.17,7.0835]
[1723841099281,15.8137,141.23,141.18,62.7073]
[1723841099461,15.8137,141.23,141.19,7.0826]
[1723841099667,13.52,141.24,141.2,7.082]
[1723841099867,6.1891,141.25,141.2,7.082]
[1723841100176,6.1891,141.25,141.21,7.0815]
[1723841100394,6.2156,141.29,141.21,45.0]
[1723841100693,19.7356,141.29,141.21,45.0]
[1723841100875,19.7356,141.29,141.2,45.0]
[1723841101077,6.2156,141.29,141.24,17.6993]
[1723841101280,6.2156,141.29,141.25,52.0792]
[1723841101592,6.2156,141.29,141.26,7.079]
[1723841101757,6.4405,141.32,141.26,17.697]
[1723841101958,6.4405,141.32,141.28,7.0776]
[1723841102481,6.4405,141.32,141.26,17.697]
[1723841102482,13.52,141.33,141.29,7.0776]
[1723841102683,13.52,141.33,141.3,7.077]
[1723841102986,15.7246,141.34,141.31,7.0765]
[1723841103678,6.1283,141.35,141.31,7.0765]
[1723841104958,6.1283,141.35,141.29,7.0773]
[1723841105267,6.1283,141.35,141.3,45.0]
[1723841106062,16.4851,141.37,141.32,7.076]
[1723841106869,13.52,141.38,141.32,7.076]
[1723841107081,7.0737,141.37,141.32,7.076]
[1723841107277,13.52,141.38,141.33,52.0756]
[1723841107278,7.0732,141.38,141.33,52.0756]
[1723841107466,6.0136,141.39,141.34,7.075]
[1723841107467,26.6063,141.39,141.34,7.075]
[1723841107670,26.6063,141.39,141.33,52.0755]
[1723841108182,6.0136,141.39,141.35,7.0744]
[1723841108389,6.0136,141.39,141.36,45.0]
[1723841108690,23.6087,141.4,141.36,45.0]
[1723841108893,7.0722,141.4,141.36,45.0]
[1723841109760,7.0716,141.41,141.36,52.074]
[1723841111068,6.3735,141.42,141.37,7.0735]
[1723841111262,20.5902,141.44,141.38,52.073]
[1723841111676,7.0702,141.44,141.38,52.073]
[1723841112491,7.0702,141.44,141.39,7.0724]
[1723841112688,7.0702,141.44,141.4,45.0]
[1723841113264,7.0697,141.45,141.4,52.072]
[1723841113788,19.6372,141.46,141.4,52.072]
[1723841113789,7.0692,141.46,141.4,52.072]
[1723841114485,7.0696,141.45,141.4,52.072]
[1723841116089,7.0692,141.46,141.41,7.0714]
[1723841116271,7.0692,141.46,141.42,45.0]
[1723841117278,7.0692,141.46,141.41,45.0]
[1723841119266,13.52,141.45,141.41,45.0]
[1723841119575,46.69556121,141.5,141.4,45.0]
[1723841119771,7.0694,141.46,141.41,7.0715]
[1723841119970,7.0694,141.46,141.42,45.0]
[1723841120183,7.0696,141.45,141.42,45.0]
[1723841120376,13.52,141.45,141.41,45.0]
[1723841120579,6.2364,141.43,141.34,6.2712]
[1723841120771,23.9134,141.43,141.33,17.6886]
[1723841121076,20.5922,141.4,141.33,17.6886]
[1723841121498,20.5922,141.4,141.34,7.0749]
[1723841121678,7.0727,141.39,141.33,24.764]
[1723841121883,20.5931,141.38,141.33,17.6886]
[1723841122189,7.072,141.41,141.35,17.6858]
[1723841122376,13.52,141.42,141.35,17.6858]
[1723841122588,20.5914,141.42,141.36,7.0737]
[1723841123401,20.5914,141.42,141.37,45.0]
[1723841123593,20.5914,141.42,141.37,52.0735]
[1723841123899,13.3071,141.43,141.37,52.0735]
[1723841124299,20.5912,141.42,141.37,52.0735]
[1723841125571,7.0716,141.41,141.37,45.0]
[1723841125980,7.0746,141.36,141.3,392.377]
[1723841126174,13.52,141.38,141.3,13.52]
[1723841126475,13.52,141.38,141.33,7.0752]
[1723841127606,13.52,141.38,141.34,45.0]
[1723841128711,13.52,141.36,141.29,7.0772]
[1723841128880,20.5942,141.36,141.3,7.077]
[1723841129078,36.0029,141.38,141.31,17.6907]
[1723841129384,7.0745,141.36,141.31,24.7673]
[1723841129804,7.0746,141.35,141.31,17.6907]
[1723841130102,7.0742,141.36,141.3,7.0769]
[1723841130312,7.0748,141.35,141.3,7.0769]
[1723841130518,7.0748,141.35,141.29,7.0775]
[1723841131023,13.346,141.37,141.31,7.0764]
[1723841131396,13.346,141.37,141.3,17.6923]
[1723841131397,7.0747,141.35,141.3,24.7692]
[1723841131596,7.0747,141.35,141.31,7.09]
[1723841131798,7.0747,141.35,141.3,24.7692]
[1723841132000,7.0747,141.35,141.31,45.0]
[1723841133622,7.0742,141.36,141.31,52.0766]
[1723841133925,13.3457,141.37,141.32,7.076]
[1723841134127,58.13872148,141.46,141.33,45.0]
[1723841134128,22.5399,141.41,141.33,45.0]
[1723841134309,22.5399,141.41,141.31,45.0]
[1723841134310,22.5399,141.41,141.34,17.6874]
[1723841134506,22.5399,141.41,141.35,45.0]
[1723841134902,7.0727,141.39,141.35,45.0]
[1723841135419,7.0722,141.4,141.35,52.0746]
[1723841137025,7.0712,141.42,141.37,7.0733]
[1723841137218,15.5156,141.44,141.38,45.0]
[1723841137529,49.2156,141.44,141.38,45.0]
[1723841137722,49.2156,141.44,141.36,17.685]
[1723841137723,49.2156,141.44,141.37,45.0]
[1723841137934,7.0717,141.41,141.37,45.0]
[1723841138222,7.0712,141.42,141.37,52.0736]
[1723841138809,15.5156,141.44,141.37,45.0]
[1723841139205,7.0707,141.43,141.38,7.0731]
[1723841139930,7.0711,141.42,141.39,45.0]
[1723841140130,7.0711,141.42,141.37,59.1635]
[1723841140927,7.0707,141.43,141.38,7.0731]
[1723841141129,7.0707,141.43,141.39,45.0]
[1723841141541,7.0702,141.44,141.39,52.0725]
[1723841141730,13.1738,141.45,141.4,7.0721]
[1723841142209,6.1041,141.45,141.41,52.0715]
[1723841144631,7.0692,141.46,141.41,52.0715]
[1723841147221,49.7628,141.48,141.39,7.0721]
[1723841147422,33.7,141.46,141.39,7.0721]
[1723841147633,33.7,141.46,141.4,45.0]
[1723841147927,20.0,141.47,141.37,17.6832]
[1723841147928,33.7,141.44,141.37,17.6832]
[1723841148335,7.0728,141.39,141.34,24.7619]
[1723841148536,15.5133,141.42,141.3,16.5454]
[1723841148719,7.0742,141.36,141.31,7.0762]
[1723841149119,40.7737,141.37,141.32,7.076]
[1723841149343,7.0737,141.37,141.32,7.076]
[1723841149731,7.0737,141.37,141.33,45.0]
[1723841150130,7.0737,141.37,141.32,7.076]
[1723841150515,33.7,141.39,141.3,41.3278]
[1723841150734,53.7,141.41,141.32,24.7794]
[1723841151121,53.7,141.41,141.34,7.0751]
[1723841151122,7.0732,141.38,141.34,7.0751]
[1723841151425,53.7,141.41,141.32,24.7794]
[1723841151624,33.7,141.39,141.33,45.0]
[1723841152021,17.6809,141.4,141.29,24.7833]
[1723841152022,33.7,141.37,141.29,24.7833]
[1723841152549,7.0747,141.35,141.29,31.8604]
[1723841152742,7.0747,141.35,141.3,7.077]
[1723841153155,7.0751,141.34,141.29,24.7708]
[1723841153770,7.0758,141.33,141.28,7.0781]
[1723841155647,7.0758,141.33,141.29,45.0]
[1723841156361,6.3525,141.36,141.29,45.0]
[1723841157062,7.0752,141.34,141.29,52.0771]
[1723841157431,7.0747,141.35,141.3,7.0771]
[1723841159645,7.0751,141.34,141.29,52.0775]
[1723841160061,7.0748,141.35,141.3,7.077]
[1723841161335,6.3525,141.36,141.29,45.0]
[1723841162372,7.0748,141.35,141.3,7.0767]
[1723841162669,40.3642,141.39,141.3,17.6923]
[1723841162842,20.0,141.38,141.31,45.0]
[1723841163245,7.0747,141.35,141.31,45.0]
[1723841164351,7.0737,141.37,141.32,7.076]
[1723841164856,7.0737,141.37,141.33,45.0]
[1723841165170,7.0737,141.37,141.32,7.076]
[1723841165668,7.0737,141.37,141.33,45.0]
[1723841166463,7.0732,141.38,141.33,52.0756]
[1723841167365,7.0736,141.37,141.33,45.0]
[1723841167669,7.075,141.35,141.3,7.0767]
[1723841167841,7.075,141.35,141.29,31.1091]
[1723841167842,7.0743,141.36,141.31,52.0765]
[1723841168571,7.0737,141.37,141.32,7.0759]
[1723841168771,7.0737,141.37,141.33,45.0]
[1723841169574,7.0732,141.38,141.33,52.0754]
[1723841170050,7.0736,141.37,141.33,45.0]
[1723841170759,7.0733,141.38,141.33,52.0756]
[1723841171166,7.0736,141.37,141.33,45.0]
[1723841171370,7.0736,141.37,141.32,7.076]
[1723841171765,33.7,141.38,141.31,17.6909]
[1723841172084,7.0746,141.35,141.31,24.7675]
[1723841172255,7.0747,141.35,141.29,7.09]
[1723841172577,33.7,141.36,141.3,45.0]
[1723841172879,33.7,141.36,141.29,45.0]
[1723841173378,7.0747,141.35,141.3,7.0767]
[1723841173569,7.0747,141.35,141.31,45.0]
[1723841173953,33.7,141.36,141.31,45.0]
[1723841173954,40.7742,141.36,141.31,52.0765]
[1723841174578,7.0742,141.36,141.31,52.0765]
[1723841174960,7.0746,141.35,141.31,45.0]
[1723841175279,7.0751,141.34,141.3,7.077]
[1723841175485,7.0757,141.33,141.28,17.6947]
[1723841175988,7.0762,141.32,141.26,16.5454]
[1723841176365,7.0762,141.32,141.27,7.0782]
[1723841176564,33.7,141.34,141.27,17.6959]
[1723841176778,15.1141,141.36,141.27,35.3923]
[1723841176991,7.0747,141.35,141.3,7.077]
[1723841177196,7.0753,141.34,141.29,24.7707]
[1723841179273,33.7,141.34,141.26,16.5454]
[1723841179493,33.7,141.32,141.25,24.7881]
[1723841179968,6.2519,141.33,141.25,24.7881]
[1723841180476,6.2519,141.33,141.27,24.7861]
[1723841180661,7.0757,141.33,141.28,52.078]
[1723841181491,33.7,141.34,141.28,45.0]
[1723841181700,33.7,141.34,141.24,17.6999]
[1723841181864,33.7,141.34,141.25,45.0]
[1723841182182,33.7,141.34,141.27,7.0786]
[1723841182183,7.0762,141.32,141.27,7.0786]
[1723841184993,33.7,141.34,141.24,7.09]
[1723841185168,7.0782,141.28,141.23,39.9099]
[1723841185369,7.0782,141.28,141.23,24.7809]
[1723841186195,7.0786,141.27,141.23,24.7809]
[1723841186491,33.7,141.26,141.16,274.569]
[1723841186693,40.7802,141.24,141.18,7.0826]
[1723841187065,40.7802,141.24,141.17,17.7088]
[1723841187066,7.0806,141.23,141.17,24.7923]
[1723841187296,7.0812,141.22,141.17,17.7088]
[1723841188266,13.5381,141.24,141.19,7.0821]
[1723841188485,7.0806,141.23,141.18,7.083]
[1723841188696,6.4579,141.24,141.19,45.0]
[1723841188889,6.4579,141.24,141.18,45.0]
[1723841189989,13.5381,141.24,141.19,7.0826]
[1723841190596,7.0794,141.26,141.21,7.0815]
[1723841190800,33.7,141.28,141.19,17.706]
[1723841190981,33.7,141.26,141.19,17.706]
[1723841191177,7.081,141.23,141.18,7.0827]
[1723841191385,7.0812,141.22,141.17,7.0832]
[1723841191796,7.0807,141.23,141.18,7.0831]
[1723841192207,7.0815,141.22,141.17,7.0835]
[1723841192386,7.0812,141.22,141.17,7.0832]
[1723841192592,7.0812,141.22,141.16,33.7786]
[1723841192593,51.3984,141.26,141.18,45.0]
[1723841192797,51.3984,141.26,141.19,7.0826]
[1723841192798,7.0805,141.24,141.19,7.0826]
[1723841193877,7.0807,141.23,141.18,7.083]
[1723841194081,33.7,141.26,141.18,17.7073]
[1723841194306,20.0,141.25,141.19,45.0]
[1723841194507,40.7795,141.26,141.2,7.0817]
[1723841194705,33.7,141.26,141.21,45.0]
[1723841195006,6.4579,141.29,141.24,24.7797]
[1723841195408,49.1104,141.3,141.24,17.6998]
[1723841195409,15.4104,141.3,141.24,17.6998]
[1723841195578,22.4875,141.3,141.26,7.079]
[1723841195778,7.0776,141.29,141.24,17.6998]
[1723841196386,7.0776,141.29,141.24,24.7798]
[1723841197183,7.0776,141.29,141.25,7.0796]
[1723841197397,56.1876,141.3,141.25,7.0796]
[1723841197598,7.0772,141.3,141.25,7.0796]
[1723841200597,33.7,141.24,141.18,24.7901]
[1723841200797,7.081,141.23,141.18,24.7901]
[1723841201299,7.0811,141.22,141.18,17.707]
[1723841201620,7.0813,141.22,141.17,7.0833]
[1723841202493,7.0816,141.21,141.17,7.0833]
[1723841203413,7.0813,141.22,141.17,7.0833]
[1723841203791,7.0807,141.23,141.18,7.083]
[1723841204206,7.0812,141.22,141.18,7.083]
[1723841204382,7.0812,141.22,141.17,24.7922]
[1723841205288,33.7,141.24,141.18,7.0831]
[1723841205617,33.7,141.24,141.18,7.083]
[1723841206311,33.7,141.22,141.16,7.084]
[1723841206518,7.0819,141.21,141.16,7.084]
[1723841207284,40.7813,141.22,141.17,7.0835]
[1723841208011,40.2478,141.26,141.15,49.0096]
[1723841208231,7.0803,141.24,141.2,17.7048]
[1723841210295,7.0803,141.24,141.2,24.7868]
[1723841210621,7.0797,141.25,141.2,24.7868]
[1723841210819,40.2478,141.26,141.2,17.7048]
[1723841210994,39.8034,141.29,141.2,17.7048]
[1723841211198,33.7,141.27,141.2,17.7048]
[1723841211399,7.0794,141.26,141.21,7.0814]
[1723841211803,7.0794,141.26,141.17,35.4163]
[1723841211804,7.0809,141.23,141.17,35.4163]
[1723841212012,7.0809,141.23,141.18,45.0]
[1723841212318,7.0803,141.24,141.19,7.0826]
[1723841212500,33.7,141.25,141.2,52.0818]
[1723841212712,33.7,141.25,141.2,7.0818]
[1723841213322,33.7,141.25,141.19,7.0824]
[1723841214120,40.7797,141.25,141.18,62.7074]
[1723841214324,20.0,141.28,141.22,7.0808]
[1723841214502,7.0787,141.27,141.22,7.0808]
[1723841214920,7.0781,141.28,141.22,17.7023]
[1723841215123,7.0781,141.28,141.23,52.0805]
[1723841215498,7.0787,141.27,141.23,45.0]
[1723841215699,7.0787,141.27,141.22,24.7833]
[1723841217802,7.0782,141.28,141.23,7.0805]